fUSD/lending_fUSD_20240319
["ID","MTS","AMOUNT","RATE_DAILY","PERIOD"]
[319584555,1710883846358,-500.0,0.00030136,2]
[319584556,1710883846369,-500.0,0.00030136,2]
[319584557,1710883846378,-2700.32,0.00030136,2]
[319584558,1710883846388,-500.0,0.00030136,2]
[319584559,1710883846398,-996.42,0.00030136,2]
[319584560,1710883846408,-500.0,0.00030136,2]
[319584561,1710883846418,-500.0,0.00030136,2]
[319584562,1710883846428,-500.0,0.00030136,2]
[319584563,1710883846438,-500.0,0.00030136,2]
[319584565,1710883846448,-963.09,0.00030136,2]
[319584567,1710883846458,-500.0,0.00030136,2]
[319584568,1710883846468,-500.0,0.00030136,2]
[319584570,1710883846477,-708.23,0.00030136,2]
[319584572,1710883846487,-698.72,0.00030136,2]
[319584575,1710883846498,-500.0,0.00030136,2]
[319584576,1710883846507,-500.0,0.00030136,2]
[319584577,1710883846517,-500.0,0.00030136,2]
[319584578,1710883846526,-1021.3,0.00030136,2]
[319584579,1710883846536,-500.80044582,0.00030136,2]
[319584580,1710883846545,-535.49,0.00030136,2]
[319584581,1710883846555,-500.0,0.00030136,2]
[319584582,1710883846565,-500.0,0.00030136,2]
[319584583,1710883846575,-500.0,0.00030136,2]
[319584584,1710883846584,-4097.82,0.00030136,2]
[319584585,1710883846594,-1107.96,0.00030136,2]
[319584587,1710883846605,-588.9,0.00030136,2]
[319584590,1710883846614,-500.0,0.00030136,2]
[319584592,1710883846624,-500.0,0.00030136,2]
[319584594,1710883846634,-500.0,0.00030136,2]
[319584596,1710883846644,-500.0,0.00030136,2]
[319584598,1710883846654,-500.0,0.00030136,2]
[319584599,1710883846664,-500.0,0.00030136,2]
[319584600,1710883846673,-500.0,0.00030136,2]
[319584601,1710883846683,-462.07496294,0.00030136,2]
[319584602,1710883846692,-678.64,0.00030136,2]
[319584603,1710883846702,-500.0,0.00030136,2]
[319584604,1710883846712,-500.0,0.00030136,2]
[319584605,1710883846723,-500.0,0.00030136,2]
[319584606,1710883846732,-253.19306776,0.00030136,2]
[319584607,1710883846744,-500.0,0.00030136,2]
[319584608,1710883846754,-500.0,0.00030136,2]
[319584609,1710883846763,-500.0,0.00030136,2]
[319584610,1710883846773,-685.69,0.00030136,2]
[319584611,1710883846782,-751.92,0.00030136,2]
[319584612,1710883846791,-2201.35,0.00030136,2]
[319584613,1710883846801,-500.0,0.00030136,2]
[319584614,1710883846810,-1806.15,0.00030136,2]
[319584615,1710883846820,-500.0,0.00030136,2]
[319584616,1710883846830,-500.0,0.00030136,2]
[319584617,1710883846839,-500.0,0.00030136,2]
[319584618,1710883846849,-1515.11,0.00030136,2]
[319584619,1710883846859,-500.0,0.00030136,2]
[319584620,1710883846868,-1513.03,0.00030136,2]
[319584621,1710883846878,-500.0,0.00030136,2]
[319584622,1710883846887,-838.64,0.00030136,2]
[319584623,1710883846896,-500.0,0.00030136,2]
[319584624,1710883846906,-500.0,0.00030136,2]
[319584625,1710883846915,-693.29,0.00030136,2]
[319584626,1710883846924,-500.0,0.00030136,2]
[319584627,1710883846934,-4074.4,0.00030136,2]
[319584628,1710883846944,-603.07,0.00030136,2]
[319584629,1710883846954,-500.0,0.00030136,2]
[319584630,1710883846965,-781.62,0.00030136,2]
[319584631,1710883846975,-638.83,0.00030136,2]
[319584632,1710883846984,-204.06882587,0.00030136,2]
[319584633,1710883846995,-500.0,0.00030136,2]
[319584634,1710883847005,-500.0,0.00030136,2]
[319584635,1710883847015,-500.0,0.00030136,2]
[319584636,1710883847025,-500.0,0.00030136,2]
[319584637,1710883847035,-500.0,0.00030136,2]
[319584638,1710883847044,-1180.36,0.00030136,2]
[319584639,1710883847054,-1494.04,0.00030136,2]
[319584640,1710883847064,-691.03,0.00030136,2]
[319584641,1710883847074,-260.43105092,0.00030136,2]
[319584642,1710883847083,-500.0,0.00030136,2]
[319584643,1710883847093,-500.0,0.00030136,2]
[319584644,1710883847104,-500.0,0.00030136,2]
[319584645,1710883847115,-1058.59,0.00030136,2]
[319584646,1710883847124,-782.29,0.00030136,2]
[319584647,1710883847134,-155.14362721,0.00030136,2]
[319584648,1710883847147,-500.0,0.00030136,2]
[319584649,1710883847157,-500.0,0.00030136,2]
[319584650,1710883847166,-299.36154267,0.00030136,2]
[319584651,1710883847175,-2757.61,0.00030136,2]
[319584652,1710883847187,-1130.81,0.00030136,2]
[319584653,1710883847197,-500.0,0.00030136,2]
[319584654,1710883847206,-934.19,0.00030136,2]
[319584655,1710883847215,-500.0,0.00030136,2]
[319584656,1710883847225,-502.71,0.00030136,2]
[319584657,1710883847234,-626.57,0.00030136,2]
[319584658,1710883847246,-500.0,0.00030136,2]
[319584659,1710883847255,-781.11,0.00030136,2]
[319584660,1710883847265,-505.09,0.00030136,2]
[319584661,1710883847275,-846.76,0.00030136,2]
[319584662,1710883847289,-912.33,0.00030136,2]
[319584663,1710883847299,-2582.04,0.00030136,2]
[319584664,1710883847308,-1278.95,0.00030136,2]
[319584665,1710883847318,-500.0,0.00030136,2]
[319584666,1710883847327,-1020.62,0.00030136,2]
[319584667,1710883847337,-1074.07,0.00030136,2]
[319584668,1710883847347,-500.0,0.00030136,2]
[319584669,1710883847356,-500.0,0.00030136,2]
[319584670,1710883847365,-1342.47,0.00030136,2]
[319584671,1710883847375,-500.0,0.00030136,2]
[319584672,1710883847384,-859.38,0.00030136,2]
[319584673,1710883847393,-869.06,0.00030136,2]
[319584674,1710883847403,-500.0,0.00030136,2]
[319584675,1710883847412,-500.0,0.00030136,2]
[319584676,1710883847422,-567.85,0.00030136,2]
[319584677,1710883847432,-500.0,0.00030136,2]
[319584678,1710883847441,-500.0,0.00030136,2]
[319584679,1710883847454,-500.0,0.00030136,2]
[319584680,1710883847790,-540.58,0.00030136,2]
[319584681,1710883847806,-500.0,0.00030136,2]
[319584682,1710883847816,-691.28,0.00030136,2]
[319584683,1710883847825,-1048.73,0.00030136,2]
[319584684,1710883847835,-731.41,0.00030136,2]
[319584685,1710883847844,-1662.72,0.00030136,2]
[319584686,1710883847854,-371.69701113,0.00030136,2]
[319584687,1710883847863,-795.79,0.00030136,2]
[319584688,1710883847873,-500.0,0.00030136,2]
[319584689,1710883847882,-152.11907056,0.00030136,2]
[319584690,1710883847892,-500.0,0.00030136,2]
[319584691,1710883847901,-500.0,0.00030136,2]
[319584692,1710883847911,-863.23,0.00030136,2]
[319584693,1710883847920,-1377.63,0.00030136,2]
[319584694,1710883847930,-500.0,0.00030136,2]
[319584695,1710883847939,-1320.23,0.00030136,2]
[319584696,1710883847949,-2750.0,0.00030136,2]
[319584697,1710883847958,-500.0,0.00030136,2]
[319584698,1710883847968,-150.0,0.00030136,2]
[319584699,1710883847977,-200.0,0.00030136,2]
[319584700,1710883847986,-500.0,0.00030136,2]
[319584701,1710883847997,-500.0,0.00030136,2]
[319584702,1710883848006,-500.0,0.00030136,2]
[319584703,1710883848016,-852.1,0.00030136,2]
[319584704,1710883848025,-500.0,0.00030136,2]
[319584705,1710883848034,-500.0,0.00030136,2]
[319584706,1710883848043,-500.0,0.00030136,2]
[319584707,1710883848053,-500.0,0.00030136,2]
[319584708,1710883848062,-2264.1,0.00030136,2]
[319584709,1710883848071,-5000.0,0.00030136,2]
[319584710,1710883848080,-500.0,0.00030136,2]
[319584711,1710883848090,-500.0,0.00030136,2]
[319584712,1710883848104,-500.0,0.00030136,2]
[319584713,1710883848113,-533.15,0.00030136,2]
[319584714,1710883848122,-500.0,0.00030136,2]
[319584715,1710883848132,-590.4,0.00030136,2]
[319584716,1710883848143,-768.62,0.00030136,2]
[319584717,1710883848152,-813.65,0.00030136,2]
[319584718,1710883848162,-500.0,0.00030136,2]
[319584719,1710883848171,-500.0,0.00030136,2]
[319584720,1710883848180,-525.18188291,0.00030136,2]
[319584721,1710883848190,-1706.37,0.00030136,2]
[319584722,1710883848200,-500.0,0.00030136,2]
[319584723,1710883848209,-710.02,0.00030136,2]
[319584724,1710883848218,-951.49,0.00030136,2]
[319584725,1710883848228,-500.0,0.00030136,2]
[319584726,1710883848237,-624.42,0.00030136,2]
[319584727,1710883848248,-500.0,0.00030136,2]
[319584728,1710883848257,-500.0,0.00030136,2]
[319584729,1710883848267,-500.0,0.00030136,2]
[319584730,1710883848276,-500.0,0.00030136,2]
[319584731,1710883848286,-500.0,0.00030136,2]
[319584732,1710883848295,-500.0,0.00030136,2]
[319584733,1710883848304,-553.77213947,0.00030136,2]
[319584734,1710883848314,-1083.59,0.00030136,2]
[319584735,1710883848323,-500.0,0.00030136,2]
[319584736,1710883848332,-1353.58,0.00030136,2]
[319584737,1710883848341,-500.0,0.00030136,2]
[319584738,1710883848351,-851.26,0.00030136,2]
[319584739,1710883848361,-797.1,0.00030136,2]
[319584740,1710883848370,-500.0,0.00030136,2]
[319584741,1710883848379,-500.0,0.00030136,2]
[319584742,1710883848388,-500.0,0.00030136,2]
[319584743,1710883848397,-500.0,0.00030136,2]
[319584744,1710883848407,-1094.92,0.00030136,2]
[319584745,1710883848416,-875.48,0.00030136,2]
[319584746,1710883848426,-2365.74,0.00030136,2]
[319584747,1710883848435,-500.0,0.00030136,2]
[319584748,1710883848444,-1362.21,0.00030136,2]
[319584749,1710883848454,-500.0,0.00030136,2]
[319584750,1710883848463,-1403.96,0.00030136,2]
[319584751,1710883848473,-500.0,0.00030136,2]
[319584752,1710883848482,-590.08,0.00030136,2]
[319584753,1710883848493,-620.16,0.00030136,2]
[319584754,1710883848503,-500.0,0.00030136,2]
[319584755,1710883848513,-569.27,0.00030136,2]
[319584756,1710883848523,-506.75,0.00030136,2]
[319584757,1710883848533,-2130.05,0.00030136,2]
[319584758,1710883848543,-518.16,0.00030136,2]
[319584759,1710883848552,-1766.0,0.00030136,2]
[319584760,1710883848562,-2685.94,0.00030136,2]
[319584761,1710883848571,-500.0,0.00030136,2]
[319584762,1710883848581,-873.29,0.00030136,2]
[319584763,1710883848590,-2470.79,0.00030136,2]
[319584764,1710883848599,-500.0,0.00030136,2]
[319584765,1710883848609,-1534.58,0.00030136,2]
[319584766,1710883848618,-500.0,0.00030136,2]
[319584767,1710883848627,-500.0,0.00030136,2]
[319584768,1710883848637,-500.0,0.00030136,2]
[319584769,1710883848647,-500.0,0.00030136,2]
[319584770,1710883848657,-1036.45,0.00030136,2]
[319584771,1710883848666,-512.06,0.00030136,2]
[319584772,1710883848675,-500.0,0.00030136,2]
[319584773,1710883848684,-1470.65,0.00030136,2]
[319584774,1710883848694,-500.0,0.00030136,2]
[319584775,1710883848703,-539.91,0.00030136,2]
[319584776,1710883848712,-500.0,0.00030136,2]
[319584777,1710883848722,-1385.11,0.00030136,2]
[319584778,1710883848731,-500.0,0.00030136,2]
[319584779,1710883848742,-500.0,0.00030136,2]
[319584780,1710883848752,-892.09,0.00030136,2]
[319584781,1710883848761,-1041.1,0.00030136,2]
[319584782,1710883848770,-500.0,0.00030136,2]
[319584783,1710883848779,-4269.17,0.00030136,2]
[319584784,1710883848789,-500.0,0.00030136,2]
[319584785,1710883848798,-670.7,0.00030136,2]
[319584786,1710883848808,-500.0,0.00030136,2]
[319584787,1710883848817,-500.0,0.00030136,2]
[319584788,1710883848826,-1864.38,0.00030136,2]
[319584789,1710883848835,-618.06,0.00030136,2]
[319584790,1710883848845,-415.22729725,0.00030136,2]
[319584791,1710883848854,-400.521406,0.00030136,2]
[319584792,1710883848863,-500.0,0.00030136,2]
[319584793,1710883848872,-571.56316885,0.00030136,2]
[319584794,1710883848882,-330.32564773,0.00030136,2]
[319584795,1710883848891,-597.33,0.00030136,2]
[319584796,1710883848900,-2495.07,0.00030136,2]
[319584797,1710883848909,-1054.82,0.00030136,2]
[319584798,1710883848918,-4586.31,0.00030136,2]
[319584799,1710883848927,-1014.6,0.00030136,2]
[319584800,1710883848937,-500.0,0.00030136,2]
[319584801,1710883848947,-500.0,0.00030136,2]
[319584802,1710883848957,-500.0,0.00030136,2]
[319584803,1710883848966,-500.0,0.00030136,2]
[319584804,1710883848975,-500.0,0.00030136,2]
[319584805,1710883848984,-1337.58,0.00030136,2]
[319584806,1710883848995,-512.04,0.00030136,2]
[319584807,1710883849005,-677.62,0.00030136,2]
[319584808,1710883849014,-1526.76,0.00030136,2]
[319584809,1710883849024,-1259.98,0.00030136,2]
[319584810,1710883849033,-1566.09,0.00030136,2]
[319584811,1710883849042,-775.9,0.00030136,2]
[319584812,1710883849051,-500.0,0.00030136,2]
[319584813,1710883849061,-500.0,0.00030136,2]
[319584814,1710883849070,-694.07,0.00030136,2]
[319584815,1710883849080,-500.0,0.00030136,2]
[319584816,1710883849089,-2087.64,0.00030136,2]
[319584817,1710883849099,-500.0,0.00030136,2]
[319584818,1710883849110,-511.94,0.00030136,2]
[319584819,1710883849119,-500.0,0.00030136,2]
[319584820,1710883849128,-500.0,0.00030136,2]
[319584821,1710883849137,-1387.77,0.00030136,2]
[319584822,1710883849147,-500.0,0.00030136,2]
[319584823,1710883849156,-500.0,0.00030136,2]
[319584824,1710883849166,-3092.84,0.00030136,2]
[319584825,1710883849175,-2016.56,0.00030136,2]
[319584826,1710883849187,-500.0,0.00030136,2]
[319584827,1710883849197,-500.0,0.00030136,2]
[319584828,1710883849206,-4137.27,0.00030136,2]
[319584829,1710883849215,-500.0,0.00030136,2]
[319584830,1710883849225,-500.0,0.00030136,2]
[319584831,1710883849234,-500.0,0.00030136,2]
[319584832,1710883849245,-500.0,0.00030136,2]
[319584833,1710883849254,-1221.58,0.00030136,2]
[319584834,1710883849264,-887.17,0.00030136,2]
[319584835,1710883849274,-500.0,0.00030136,2]
[319584836,1710883849283,-1339.53,0.00030136,2]
[319584837,1710883849292,-1141.5,0.00030136,2]
[319584838,1710883849301,-2224.93,0.00030136,2]
[319584839,1710883849310,-500.0,0.00030136,2]
[319584840,1710883849319,-522.54,0.00030136,2]
[319584841,1710883849328,-515.48,0.00030136,2]
[319584842,1710883849337,-500.0,0.00030136,2]
[319584843,1710883849347,-1238.68,0.00030136,2]
[319584844,1710883849356,-755.91,0.00030136,2]
[319584845,1710883849365,-521.0,0.00030136,2]
[319584846,1710883849374,-1097.47,0.00030136,2]
[319584847,1710883849383,-500.0,0.00030136,2]
[319584848,1710883849392,-500.0,0.00030136,2]
[319584849,1710883849401,-853.55,0.00030136,2]
[319584850,1710883849410,-735.47,0.00030136,2]
[319584851,1710883849419,-1615.45,0.00030136,2]
[319584852,1710883849428,-859.69,0.00030136,2]
[319584853,1710883849437,-500.0,0.00030136,2]
[319584854,1710883849446,-1583.83,0.00030136,2]
[319584855,1710883849455,-500.0,0.00030136,2]
[319584856,1710883849464,-500.0,0.00030136,2]
[319584857,1710883849473,-500.0,0.00030136,2]
[319584858,1710883849483,-780.78,0.00030136,2]
[319584859,1710883849492,-500.0,0.00030136,2]
[319584860,1710883849501,-2133.33,0.00030136,2]
[319584861,1710883849510,-500.0,0.00030136,2]
[319584862,1710883849519,-500.0,0.00030136,2]
[319584863,1710883849529,-1323.94,0.00030136,2]
[319584864,1710883849538,-500.0,0.00030136,2]
[319584865,1710883849547,-823.79,0.00030136,2]
[319584866,1710883849556,-500.0,0.00030136,2]
[319584867,1710883849565,-500.0,0.00030136,2]
[319584868,1710883849575,-508.96,0.00030136,2]
[319584869,1710883849583,-500.76453188,0.00030136,2]
[319584870,1710883849592,-1623.15,0.00030136,2]
[319584871,1710883849601,-500.0,0.00030136,2]
[319584872,1710883849610,-795.56,0.00030136,2]
[319584873,1710883849619,-500.0,0.00030136,2]
[319584874,1710883849629,-500.0,0.00030136,2]
[319584875,1710883849638,-704.5,0.00030136,2]
[319584876,1710883849647,-1065.61,0.00030136,2]
[319584877,1710883849657,-1468.41,0.00030136,2]
[319584878,1710883849666,-1194.31,0.00030136,2]
[319584879,1710883849675,-500.0,0.00030136,2]
[319584880,1710883849685,-500.0,0.00030136,2]
[319584881,1710883849694,-1136.64,0.00030136,2]
[319584882,1710883849703,-736.67,0.00030136,2]
[319584883,1710883849712,-1054.6,0.00030136,2]
[319584884,1710883849722,-500.0,0.00030136,2]
[319584885,1710883849731,-500.0,0.00030136,2]
[319584886,1710883849741,-500.0,0.00030136,2]
[319584887,1710883849751,-1431.34,0.00030136,2]
[319584888,1710883849760,-500.0,0.00030136,2]
[319584889,1710883849769,-961.6,0.00030136,2]
[319584890,1710883849779,-500.0,0.00030136,2]
[319584891,1710883849788,-500.0,0.00030136,2]
[319584892,1710883849797,-2402.37,0.00030136,2]
[319584893,1710883849807,-536.66855767,0.00030136,2]
[319584894,1710883849816,-500.0,0.00030136,2]
[319584895,1710883849825,-1716.71,0.00030136,2]
[319584896,1710883849834,-500.0,0.00030136,2]
[319584897,1710883849843,-1601.69,0.00030136,2]
[319584898,1710883849852,-500.0,0.00030136,2]
[319584899,1710883849861,-4667.46,0.00030136,2]
[319584900,1710883849871,-1218.63,0.00030136,2]
[319584901,1710883849880,-500.0,0.00030136,2]
[319584902,1710883849889,-500.0,0.00030136,2]
[319584903,1710883849898,-500.0,0.00030136,2]
[319584904,1710883849907,-1581.23,0.00030136,2]
[319584905,1710883849916,-1639.05,0.00030136,2]
[319584906,1710883849925,-500.0,0.00030136,2]
[319584907,1710883849935,-843.91,0.00030136,2]
[319584908,1710883849944,-150.0,0.00030136,2]
[319584909,1710883849954,-907.99,0.00030136,2]
[319584910,1710883849963,-500.0,0.00030136,2]
[319584911,1710883849973,-500.0,0.00030136,2]
[319584912,1710883849982,-1444.08,0.00030136,2]
[319584913,1710883849992,-500.0,0.00030136,2]
[319584914,1710883850002,-2169.8,0.00030136,2]
[319584915,1710883850012,-643.36,0.00030136,2]
[319584916,1710883850021,-500.0,0.00030136,2]
[319584917,1710883850030,-500.0,0.00030136,2]
[319584918,1710883850040,-1368.44,0.00030136,2]
[319584919,1710883850052,-500.0,0.00030136,2]
[319584920,1710883850061,-500.0,0.00030136,2]
[319584921,1710883850071,-1788.21,0.00030136,2]
[319584922,1710883850080,-997.85,0.00030136,2]
[319584923,1710883850090,-500.0,0.00030136,2]
[319584924,1710883850101,-500.0,0.00030136,2]
[319584925,1710883850111,-2227.94,0.00030136,2]
[319584926,1710883850120,-523.21,0.00030136,2]
[319584927,1710883850129,-500.0,0.00030136,2]
[319584928,1710883850139,-500.0,0.00030136,2]
[319584929,1710883850148,-500.0,0.00030136,2]
[319584930,1710883850158,-500.0,0.00030136,2]
[319584931,1710883850168,-500.0,0.00030136,2]
[319584932,1710883850178,-1062.54,0.00030136,2]
[319584933,1710883850189,-500.0,0.00030136,2]
[319584934,1710883850198,-2421.41,0.00030136,2]
[319584935,1710883850208,-500.0,0.00030136,2]
[319584936,1710883850217,-500.0,0.00030136,2]
[319584937,1710883850227,-944.3,0.00030136,2]
[319584938,1710883850236,-1427.8,0.00030136,2]
[319584939,1710883850248,-721.9,0.00030136,2]
[319584940,1710883850257,-500.0,0.00030136,2]
[319584941,1710883850266,-2085.28,0.00030136,2]
[319584942,1710883850276,-807.72,0.00030136,2]
[319584943,1710883850285,-500.0,0.00030136,2]
[319584944,1710883850295,-1209.88,0.00030136,2]
[319584945,1710883850304,-629.63,0.00030136,2]
[319584946,1710883850313,-500.0,0.00030136,2]
[319584947,1710883850322,-500.0,0.00030136,2]
[319584948,1710883850332,-2677.15,0.00030136,2]
[319584949,1710883850341,-1860.63,0.00030136,2]
[319584950,1710883850350,-608.3,0.00030136,2]
[319584951,1710883850359,-2012.38,0.00030136,2]
[319584952,1710883850369,-500.0,0.00030136,2]
[319584953,1710883850378,-689.51,0.00030136,2]
[319584954,1710883850387,-3603.52,0.00030136,2]
[319584955,1710883850397,-2566.01,0.00030136,2]
[319584956,1710883850406,-1531.43,0.00030136,2]
[319584957,1710883850415,-546.93,0.00030136,2]
[319584958,1710883850424,-2355.47,0.00030136,2]
[319584959,1710883850434,-667.89,0.00030136,2]
[319584960,1710883850443,-2131.2,0.00030136,2]
[319584961,1710883850452,-2323.6,0.00030136,2]
[319584962,1710883850461,-1029.83,0.00030136,2]
[319584963,1710883850470,-1002.08,0.00030136,2]
[319584964,1710883850479,-920.9,0.00030136,2]
[319584965,1710883850488,-500.0,0.00030136,2]
[319584966,1710883850499,-500.0,0.00030136,2]
[319584967,1710883850508,-500.0,0.00030136,2]
[319584968,1710883850517,-500.0,0.00030136,2]
[319584969,1710883850526,-500.0,0.00030136,2]
[319584970,1710883850535,-500.0,0.00030136,2]
[319584971,1710883850543,-911.98,0.00030136,2]
[319584972,1710883850553,-1678.98,0.00030136,2]
[319584973,1710883850562,-500.0,0.00030136,2]
[319584974,1710883850571,-1863.56,0.00030136,2]
[319584975,1710883850580,-500.0,0.00030136,2]
[319584976,1710883850589,-1128.71,0.00030136,2]
[319584977,1710883850598,-2681.45,0.00030136,2]
[319584978,1710883850607,-1339.78,0.00030136,2]
[319584979,1710883850616,-500.0,0.00030136,2]
[319584980,1710883850625,-1106.22,0.00030136,2]
[319584981,1710883850634,-1300.16,0.00030136,2]
[319584982,1710883850644,-992.6,0.00030136,2]
[319584983,1710883850653,-1592.35,0.00030136,2]
[319584984,1710883850663,-819.23,0.00030136,2]
[319584985,1710883850672,-1472.83,0.00030136,2]
[319584986,1710883850685,-500.0,0.00030136,2]
[319584987,1710883850700,-1693.58,0.00030136,2]
[319584988,1710883850714,-500.0,0.00030136,2]
[319584989,1710883850727,-920.2,0.00030136,2]
[319584990,1710883850738,-500.0,0.00030136,2]
[319584991,1710883850754,-3015.74,0.00030136,2]
[319584992,1710883850767,-1479.36,0.00030136,2]
[319584993,1710883850782,-1476.3,0.00030136,2]
[319584994,1710883850796,-500.0,0.00030136,2]
[319584995,1710883850810,-1044.17,0.00030136,2]
[319584996,1710883850822,-730.68,0.00030136,2]
[319584997,1710883850833,-500.0,0.00030136,2]
[319584998,1710883850847,-578.08,0.00030136,2]
[319584999,1710883850859,-500.0,0.00030136,2]
[319585000,1710883850873,-500.0,0.00030136,2]
[319585001,1710883850886,-595.68,0.00030136,2]
[319585002,1710883850900,-3228.34,0.00030136,2]
[319585003,1710883850913,-1788.05,0.00030136,2]
[319585004,1710883850925,-500.0,0.00030136,2]
[319585005,1710883850940,-4601.24,0.00030136,2]
[319585006,1710883850954,-3085.88,0.00030136,2]
[319585007,1710883850969,-500.0,0.00030136,2]
[319585008,1710883850982,-500.0,0.00030136,2]
[319585009,1710883850996,-500.0,0.00030136,2]
[319585010,1710883851008,-599.74,0.00030136,2]
[319585011,1710883851022,-1358.55,0.00030136,2]
[319585012,1710883851034,-500.0,0.00030136,2]
[319585013,1710883851048,-500.0,0.00030136,2]
[319585014,1710883851062,-500.0,0.00030136,2]
[319585015,1710883851076,-500.0,0.00030136,2]
[319585016,1710883851090,-500.0,0.00030136,2]
[319585017,1710883851105,-500.0,0.00030136,2]
[319585018,1710883851115,-500.0,0.00030136,2]
[319585019,1710883851126,-338.85860441,0.00030136,2]
[319585020,1710883851139,-670.46,0.00030136,2]
[319585021,1710883851152,-500.0,0.00030136,2]
[319585022,1710883851164,-543.46569511,0.00030136,2]
[319585023,1710883851178,-642.15,0.00030136,2]
[319585024,1710883851192,-500.0,0.00030136,2]
[319585025,1710883851203,-566.16,0.00030136,2]
[319585026,1710883851215,-3009.86,0.00030136,2]
[319585027,1710883851228,-721.15,0.00030136,2]
[319585028,1710883851240,-2938.58,0.00030136,2]
[319585029,1710883851253,-500.0,0.00030136,2]
[319585030,1710883851265,-4752.16,0.00030136,2]
[319585031,1710883851278,-500.0,0.00030136,2]
[319585032,1710883851290,-998.08,0.00030136,2]
[319585033,1710883851302,-1617.93,0.00030136,2]
[319585034,1710883851314,-1489.28,0.00030136,2]
[319585035,1710883851326,-619.52,0.00030136,2]
[319585036,1710883851338,-3181.49,0.00030136,2]
[319585037,1710883851349,-667.9,0.00030136,2]
[319585038,1710883851362,-500.0,0.00030136,2]
[319585039,1710883851374,-771.66,0.00030136,2]
[319585040,1710883851386,-500.0,0.00030136,2]
[319585041,1710883851399,-917.14,0.00030136,2]
[319585042,1710883851411,-1132.34,0.00030136,2]
[319585043,1710883851424,-536.82,0.00030136,2]
[319585044,1710883851436,-1991.15,0.00030136,2]
[319585045,1710883851447,-4279.74,0.00030136,2]
[319585046,1710883851459,-612.08,0.00030136,2]
[319585047,1710883851470,-1110.06,0.00030136,2]
[319585048,1710883851489,-500.0,0.00030136,2]
[319585049,1710883851503,-500.0,0.00030136,2]
[319585050,1710883851515,-1665.19,0.00030136,2]
[319585051,1710883851527,-1045.55,0.00030136,2]
[319585052,1710883851539,-500.0,0.00030136,2]
[319585053,1710883851550,-1094.52,0.00030136,2]
[319585054,1710883851562,-500.0,0.00030136,2]
[319585055,1710883851574,-532.26,0.00030136,2]
[319585056,1710883851585,-500.0,0.00030136,2]
[319585057,1710883851597,-1786.87,0.00030136,2]
[319585058,1710883851609,-502.72,0.00030136,2]
[319585059,1710883851621,-786.76,0.00030136,2]
[319585060,1710883851632,-500.0,0.00030136,2]
[319585061,1710883851644,-806.79,0.00030136,2]
[319585062,1710883851656,-748.95,0.00030136,2]
[319585063,1710883851667,-500.0,0.00030136,2]
[319585064,1710883851678,-500.0,0.00030136,2]
[319585065,1710883851690,-593.79,0.00030136,2]
[319585066,1710883851702,-500.0,0.00030136,2]
[319585067,1710883851714,-8856.3,0.00030136,2]